[Event "*** Titled Tuesday Blitz"]
[Site "Chess.com"]
[Date "2020.04.07"]
[Round "6"]
[White "letantha"]
[Black "Maili15"]
[Result "1/2-1/2"]
[WhiteElo "2136"]
[BlackElo "2285"]
[TimeControl "180+1"]
[EndTime "14:08:02 PDT"]
[Termination "Game drawn by stalemate"]

1. e4 {[%clk 0:01:47.3]} 1... c5 {[%clk 0:02:59.7]} 2. c3 {[%clk 0:01:45.1]}
2... d5 {[%clk 0:02:59.6]} 3. exd5 {[%clk 0:01:44.8]} 3... Qxd5 {[%clk
0:03:00.5]} 4. d4 {[%clk 0:01:44.1]} 4... Nf6 {[%clk 0:02:59.4]} 5. Nf3 {[%clk
0:01:40.4]} 5... e6 {[%clk 0:02:59.6]} 6. Na3 {[%clk 0:01:36.8]} 6... Qd8 {[%clk
0:02:59.5]} 7. Nc2 {[%clk 0:01:31]} 7... Nc6 {[%clk 0:02:58.3]} 8. Be3 {[%clk
0:01:28.7]} 8... cxd4 {[%clk 0:02:56.9]} 9. Ncxd4 {[%clk 0:01:29.6]} 9... Nxd4
{[%clk 0:02:54.6]} 10. Qxd4 {[%clk 0:01:25.2]} 10... Qxd4 {[%clk 0:02:41.4]} 11.
Bxd4 {[%clk 0:01:11.9]} 11... Be7 {[%clk 0:02:41.1]} 12. Be2 {[%clk 0:01:08.1]}
12... O-O {[%clk 0:02:40]} 13. Ne5 {[%clk 0:01:08.2]} 13... Rd8 {[%clk
0:02:31.5]} 14. Bf3 {[%clk 0:01:07]} 14... Nd7 {[%clk 0:02:25.7]} 15. O-O-O
{[%clk 0:01:01.9]} 15... f6 {[%clk 0:02:02.9]} 16. Nxd7 {[%clk 0:00:47.6]} 16...
Rxd7 {[%clk 0:02:03.2]} 17. Rhe1 {[%clk 0:00:46.7]} 17... e5 {[%clk 0:02:00.1]}
18. Be3 {[%clk 0:00:42.1]} 18... Rc7 {[%clk 0:01:53.8]} 19. Bd5+ {[%clk
0:00:38]} 19... Kf8 {[%clk 0:01:51.9]} 20. Be4 {[%clk 0:00:32.5]} 20... h6
{[%clk 0:01:42.8]} 21. f4 {[%clk 0:00:19.1]} 21... f5 {[%clk 0:01:38.8]} 22. Bd5
{[%clk 0:00:19.5]} 22... e4 {[%clk 0:01:37.4]} 23. g4 {[%clk 0:00:17.2]} 23...
fxg4 {[%clk 0:01:22.3]} 24. Bxe4 {[%clk 0:00:16.8]} 24... Be6 {[%clk 0:01:07.9]}
25. Kb1 {[%clk 0:00:16.8]} 25... Rac8 {[%clk 0:01:00.3]} 26. f5 {[%clk
0:00:16.2]} 26... Bf7 {[%clk 0:00:56.8]} 27. Bf4 {[%clk 0:00:14.9]} 27... Rc5
{[%clk 0:00:52.1]} 28. Be3 {[%clk 0:00:14.4]} 28... Ra5 {[%clk 0:00:51]} 29. a3
{[%clk 0:00:14.7]} 29... Bb3 {[%clk 0:00:50]} 30. Rd7 {[%clk 0:00:13.8]} 30...
Rd8 {[%clk 0:00:39.4]} 31. Rxb7 {[%clk 0:00:13.4]} 31... Re5 {[%clk 0:00:35]}
32. Bd4 {[%clk 0:00:12]} 32... Rxe4 {[%clk 0:00:30.9]} 33. Rxe4 {[%clk
0:00:11.6]} 33... Bd5 {[%clk 0:00:19.6]} 34. Rexe7 {[%clk 0:00:10.4]} 34... Bxb7
{[%clk 0:00:19.7]} 35. Rxb7 {[%clk 0:00:11.1]} 35... a5 {[%clk 0:00:18.2]} 36.
Bxg7+ {[%clk 0:00:08.3]} 36... Kg8 {[%clk 0:00:18.4]} 37. Bxh6 {[%clk
0:00:08.5]} 37... Rd5 {[%clk 0:00:17.3]} 38. f6 {[%clk 0:00:08.1]} 38... Rf5
{[%clk 0:00:16.4]} 39. Rg7+ {[%clk 0:00:08.1]} 39... Kh8 {[%clk 0:00:16.1]} 40.
Rf7 {[%clk 0:00:07.1]} 40... Kg8 {[%clk 0:00:15.5]} 41. Rg7+ {[%clk 0:00:06.7]}
41... Kh8 {[%clk 0:00:15.7]} 42. Bg5 {[%clk 0:00:06.2]} 42... Rf1+ {[%clk
0:00:15.1]} 43. Kc2 {[%clk 0:00:05.9]} 43... g3 {[%clk 0:00:15]} 44. hxg3 {[%clk
0:00:05.4]} 44... a4 {[%clk 0:00:15.4]} 45. Kd3 {[%clk 0:00:05.3]} 45... Rf3+
{[%clk 0:00:14.2]} 46. Kc4 {[%clk 0:00:04.4]} 46... Rxc3+ {[%clk 0:00:13.5]} 47.
Kb4 {[%clk 0:00:02.9]} 47... Rb3+ {[%clk 0:00:12.6]} 48. Kxa4 {[%clk 0:00:03.5]}
48... Rxa3+ {[%clk 0:00:12.4]} 49. Kxa3 {[%clk 0:00:03]} 1/2-1/2

[Event "*** Titled Tuesday Blitz"]
[Site "Chess.com"]
[Date "2020.04.07"]
[Round "6"]
[White "Gabrielian_Artur"]
[Black "riconaipe"]
[Result "0-1"]
[WhiteElo "2718"]
[BlackElo "2540"]
[TimeControl "180+1"]
[EndTime "14:08:03 PDT"]
[Termination "riconaipe won by resignation"]

1. e4 {[%clk 0:03:00.9]} 1... c6 {[%clk 0:02:56.9]} 2. d4 {[%clk 0:02:59.4]}
2... d5 {[%clk 0:02:57.4]} 3. Nd2 {[%clk 0:03:00]} 3... dxe4 {[%clk 0:02:57.5]}
4. Nxe4 {[%clk 0:03:00.3]} 4... Bf5 {[%clk 0:02:58]} 5. Ng3 {[%clk 0:03:00]}
5... Bg6 {[%clk 0:02:58.3]} 6. c3 {[%clk 0:03:00.4]} 6... e6 {[%clk 0:02:53.7]}
7. Nh3 {[%clk 0:03:00.3]} 7... Bd6 {[%clk 0:02:53.4]} 8. Nf4 {[%clk 0:03:00.4]}
8... Qc7 {[%clk 0:02:51.8]} 9. Qf3 {[%clk 0:03:00.4]} 9... e5 {[%clk 0:02:48.3]}
10. Nxg6 {[%clk 0:02:16.3]} 10... hxg6 {[%clk 0:02:49.2]} 11. dxe5 {[%clk
0:02:14.6]} 11... Bxe5 {[%clk 0:02:48.7]} 12. Be3 {[%clk 0:02:14.7]} 12... Nf6
{[%clk 0:02:40.7]} 13. O-O-O {[%clk 0:02:10.8]} 13... Nbd7 {[%clk 0:02:31.8]}
14. Bc4 {[%clk 0:02:10.1]} 14... Nb6 {[%clk 0:02:29.8]} 15. Bb3 {[%clk
0:02:10.1]} 15... Nbd5 {[%clk 0:02:24.3]} 16. Bc5 {[%clk 0:01:40.9]} 16... O-O-O
{[%clk 0:02:08.1]} 17. Kb1 {[%clk 0:01:36.7]} 17... Kb8 {[%clk 0:02:02.7]} 18.
h3 {[%clk 0:01:15.2]} 18... Rhe8 {[%clk 0:01:43]} 19. Rhe1 {[%clk 0:01:06.4]}
19... b6 {[%clk 0:01:33.7]} 20. Be3 {[%clk 0:00:53]} 20... Nxe3 {[%clk
0:01:32.7]} 21. Rxe3 {[%clk 0:00:45.9]} 21... Bxg3 {[%clk 0:01:28.2]} 22. Rxe8
{[%clk 0:00:38.3]} 22... Rxe8 {[%clk 0:01:24.2]} 23. fxg3 {[%clk 0:00:34.7]}
23... Re5 {[%clk 0:01:02.8]} 24. a4 {[%clk 0:00:33.5]} 24... Re7 {[%clk
0:00:41.2]} 25. Ka2 {[%clk 0:00:33]} 25... Ne4 {[%clk 0:00:40.2]} 26. g4 {[%clk
0:00:24.4]} 26... Nc5 {[%clk 0:00:40]} 27. Bc2 {[%clk 0:00:22.3]} 27... Rd7
{[%clk 0:00:39]} 28. Rxd7 {[%clk 0:00:21]} 28... Qxd7 {[%clk 0:00:39.3]} 29.
Qf4+ {[%clk 0:00:21.5]} 29... Kb7 {[%clk 0:00:38.6]} 30. b4 {[%clk 0:00:21.8]}
30... Qe6+ {[%clk 0:00:18.9]} 31. Kb2 {[%clk 0:00:18.2]} 31... Nd7 {[%clk
0:00:16.7]} 32. Be4 {[%clk 0:00:14]} 32... Ne5 {[%clk 0:00:13.8]} 33. b5 {[%clk
0:00:13.3]} 33... g5 {[%clk 0:00:11.2]} 34. bxc6+ {[%clk 0:00:09.4]} 34... Kc7
{[%clk 0:00:10.3]} 35. Qg3 {[%clk 0:00:08.9]} 35... f6 {[%clk 0:00:08.2]} 36.
Bc2 {[%clk 0:00:06]} 36... Qd6 {[%clk 0:00:07.8]} 37. Bb3 {[%clk 0:00:05.8]}
37... Nc4+ {[%clk 0:00:07.3]} 38. Bxc4 {[%clk 0:00:05.7]} 38... Qxg3 {[%clk
0:00:08.2]} 0-1

[Event "*** Titled Tuesday Blitz"]
[Site "Chess.com"]
[Date "2020.04.07"]
[Round "6"]
[White "SerGo055"]
[Black "WIDBIFS"]
[Result "1-0"]
[WhiteElo "2557"]
[BlackElo "2787"]
[TimeControl "180+1"]
[EndTime "14:08:04 PDT"]
[Termination "SerGo055 won on time"]

1. d4 {[%clk 0:03:00.9]} 1... Nf6 {[%clk 0:02:59.8]} 2. Nf3 {[%clk 0:02:56.8]}
2... g6 {[%clk 0:03:00]} 3. c4 {[%clk 0:02:55.9]} 3... Bg7 {[%clk 0:03:00.4]} 4.
Nc3 {[%clk 0:02:55.7]} 4... O-O {[%clk 0:03:00.9]} 5. Bg5 {[%clk 0:02:55.5]}
5... c5 {[%clk 0:03:00.8]} 6. d5 {[%clk 0:02:55.1]} 6... d6 {[%clk 0:03:01]} 7.
Qd2 {[%clk 0:02:54.9]} 7... a6 {[%clk 0:02:57.2]} 8. e4 {[%clk 0:02:54.6]} 8...
Bg4 {[%clk 0:02:55.3]} 9. Bh6 {[%clk 0:02:53.3]} 9... b5 {[%clk 0:02:33.8]} 10.
Bxg7 {[%clk 0:02:50.7]} 10... Kxg7 {[%clk 0:02:34.7]} 11. cxb5 {[%clk
0:02:50.5]} 11... axb5 {[%clk 0:02:34]} 12. Bxb5 {[%clk 0:02:49.3]} 12... Qa5
{[%clk 0:02:33.3]} 13. Bd3 {[%clk 0:02:32.1]} 13... Bxf3 {[%clk 0:02:15.9]} 14.
gxf3 {[%clk 0:02:31.3]} 14... Nbd7 {[%clk 0:02:16.5]} 15. f4 {[%clk 0:02:06.6]}
15... Rab8 {[%clk 0:02:09.4]} 16. O-O {[%clk 0:02:04.9]} 16... Qb4 {[%clk
0:02:09.1]} 17. Rab1 {[%clk 0:02:00.1]} 17... Nb6 {[%clk 0:01:34.4]} 18. a3
{[%clk 0:01:44.6]} 18... Qa5 {[%clk 0:01:21.1]} 19. Rfd1 {[%clk 0:01:42.8]}
19... Rfc8 {[%clk 0:01:05.3]} 20. f3 {[%clk 0:01:35.9]} 20... Na4 {[%clk
0:00:57.9]} 21. Nxa4 {[%clk 0:01:28.6]} 21... Qxa4 {[%clk 0:00:58.8]} 22. Qc2
{[%clk 0:01:27.3]} 22... Qxc2 {[%clk 0:00:31.5]} 23. Bxc2 {[%clk 0:01:26.8]}
23... Nh5 {[%clk 0:00:32.3]} 24. f5 {[%clk 0:01:26.7]} 24... g5 {[%clk 0:00:28]}
25. Bd3 {[%clk 0:01:10.1]} 25... Rb3 {[%clk 0:00:27.5]} 26. Kf2 {[%clk
0:01:08.1]} 26... Rcb8 {[%clk 0:00:27.4]} 27. Rd2 {[%clk 0:01:00.8]} 27... Nf4
{[%clk 0:00:27.2]} 28. Bc4 {[%clk 0:00:59.2]} 28... Rxa3 {[%clk 0:00:21.4]} 29.
bxa3 {[%clk 0:00:58.8]} 29... Rxb1 {[%clk 0:00:22.3]} 30. Ra2 {[%clk 0:00:57.1]}
30... Rc1 {[%clk 0:00:19.1]} 31. Bf1 {[%clk 0:00:56.1]} 31... c4 {[%clk
0:00:14.8]} 32. a4 {[%clk 0:00:56.1]} 32... Nd3+ {[%clk 0:00:15.2]} 33. Bxd3
{[%clk 0:00:54]} 33... cxd3 {[%clk 0:00:16.1]} 34. Ke3 {[%clk 0:00:54.5]} 34...
Rc8 {[%clk 0:00:10]} 35. a5 {[%clk 0:00:53.1]} 35... Kf6 {[%clk 0:00:09.5]} 36.
a6 {[%clk 0:00:52.8]} 36... Ke5 {[%clk 0:00:09]} 37. a7 {[%clk 0:00:52.4]} 37...
Ra8 {[%clk 0:00:09.6]} 38. Kxd3 {[%clk 0:00:52.4]} 38... Kf4 {[%clk 0:00:09.9]}
39. Ke2 {[%clk 0:00:51.1]} 39... h5 {[%clk 0:00:10.5]} 40. Ra4 {[%clk
0:00:47.6]} 40... g4 {[%clk 0:00:09.7]} 41. fxg4 {[%clk 0:00:46.8]} 41... hxg4
{[%clk 0:00:10.6]} 42. Kf2 {[%clk 0:00:46.3]} 42... Kg5 {[%clk 0:00:07.5]} 43.
Kg3 {[%clk 0:00:46.4]} 43... Kh5 {[%clk 0:00:07.4]} 44. Kf4 {[%clk 0:00:43.9]}
44... Kh4 {[%clk 0:00:07.2]} 45. Ra3 {[%clk 0:00:43.9]} 45... f6 {[%clk
0:00:05.3]} 46. Ra4 {[%clk 0:00:32.2]} 46... Kh3 {[%clk 0:00:05.8]} 47. Ra2
{[%clk 0:00:32.2]} 47... Kh4 {[%clk 0:00:06.4]} 48. Ra3 {[%clk 0:00:32.3]} 48...
Kh5 {[%clk 0:00:07]} 49. h3 {[%clk 0:00:32]} 49... Kh4 {[%clk 0:00:05.1]} 50.
hxg4 {[%clk 0:00:30.3]} 1-0

[Event "*** Titled Tuesday Blitz"]
[Site "Chess.com"]
[Date "2020.04.07"]
[Round "6"]
[White "Stormeman100100"]
[Black "AndrewMaco"]
[Result "1-0"]
[WhiteElo "2491"]
[BlackElo "2619"]
[TimeControl "180+1"]
[EndTime "14:08:05 PDT"]
[Termination "Stormeman100100 won on time"]

1. e4 {[%clk 0:03:00.9]} 1... c6 {[%clk 0:02:54.4]} 2. d4 {[%clk 0:02:59.9]}
2... d5 {[%clk 0:02:53.5]} 3. e5 {[%clk 0:02:59.6]} 3... Bf5 {[%clk 0:02:53]} 4.
Nd2 {[%clk 0:02:59.8]} 4... e6 {[%clk 0:02:52.9]} 5. Nb3 {[%clk 0:03:00.1]} 5...
Nd7 {[%clk 0:02:52]} 6. Nf3 {[%clk 0:03:00]} 6... c5 {[%clk 0:02:52.4]} 7. dxc5
{[%clk 0:02:57.3]} 7... Bxc5 {[%clk 0:02:53.3]} 8. Nxc5 {[%clk 0:02:53.2]} 8...
Nxc5 {[%clk 0:02:54.2]} 9. Be3 {[%clk 0:02:46.5]} 9... Nd7 {[%clk 0:02:43.7]}
10. Nd4 {[%clk 0:02:46.2]} 10... Ne7 {[%clk 0:02:29.5]} 11. f4 {[%clk
0:02:42.6]} 11... O-O {[%clk 0:02:28]} 12. Be2 {[%clk 0:02:41.3]} 12... Be4
{[%clk 0:02:21.8]} 13. O-O {[%clk 0:02:40]} 13... Rc8 {[%clk 0:02:21.4]} 14. c3
{[%clk 0:02:37.9]} 14... Nf5 {[%clk 0:02:21.5]} 15. Nxf5 {[%clk 0:02:37.5]}
15... Bxf5 {[%clk 0:02:22.4]} 16. a4 {[%clk 0:02:08]} 16... Nb8 {[%clk
0:02:04.5]} 17. Bxa7 {[%clk 0:02:01.8]} 17... b6 {[%clk 0:02:01.6]} 18. Bxb8
{[%clk 0:01:55.2]} 18... Rxb8 {[%clk 0:02:02.5]} 19. Qd4 {[%clk 0:01:54]} 19...
Qc7 {[%clk 0:02:02.1]} 20. Rfc1 {[%clk 0:01:51.4]} 20... Qc5 {[%clk 0:01:58.1]}
21. b4 {[%clk 0:01:50.1]} 21... Qc7 {[%clk 0:01:55.5]} 22. a5 {[%clk 0:01:48.4]}
22... bxa5 {[%clk 0:01:54.9]} 23. bxa5 {[%clk 0:01:49.3]} 23... f6 {[%clk
0:01:47.5]} 24. a6 {[%clk 0:01:43.7]} 24... fxe5 {[%clk 0:01:46]} 25. fxe5
{[%clk 0:01:43.2]} 25... Be4 {[%clk 0:01:44.7]} 26. a7 {[%clk 0:01:40.6]} 26...
Ra8 {[%clk 0:01:42.2]} 27. Rf1 {[%clk 0:01:35.1]} 27... Rfc8 {[%clk 0:01:39]}
28. Bg4 {[%clk 0:01:25.1]} 28... Re8 {[%clk 0:01:33.4]} 29. Rfe1 {[%clk
0:01:16.7]} 29... g6 {[%clk 0:01:15.7]} 30. Re2 {[%clk 0:01:07.1]} 30... Kg7
{[%clk 0:01:12.9]} 31. Rb2 {[%clk 0:01:05.3]} 31... Re7 {[%clk 0:01:06.7]} 32.
Rba2 {[%clk 0:00:58.5]} 32... h5 {[%clk 0:01:02.5]} 33. Bh3 {[%clk 0:00:57.8]}
33... g5 {[%clk 0:01:02.7]} 34. g3 {[%clk 0:00:53.4]} 34... g4 {[%clk
0:01:00.4]} 35. Bg2 {[%clk 0:00:48.5]} 35... Bxg2 {[%clk 0:01:00.1]} 36. Kxg2
{[%clk 0:00:49.4]} 36... Rf7 {[%clk 0:00:50.7]} 37. Ra6 {[%clk 0:00:49]} 37...
Qb7 {[%clk 0:00:39.3]} 38. Rb6 {[%clk 0:00:19.2]} 38... Qe7 {[%clk 0:00:33.8]}
39. Raa6 {[%clk 0:00:15.5]} 39... Rxa7 {[%clk 0:00:27.4]} 40. Rxe6 {[%clk
0:00:09.5]} 40... Rxa6 {[%clk 0:00:06.6]} 41. Rxa6 {[%clk 0:00:10.4]} 41... Rf5
{[%clk 0:00:02]} 42. Ra7 {[%clk 0:00:08.6]} 1-0

[Event "*** Titled Tuesday Blitz"]
[Site "Chess.com"]
[Date "2020.04.07"]
[Round "6"]
[White "Alexander_Donchenko"]
[Black "ChristopherYoo"]
[Result "1-0"]
[WhiteElo "2863"]
[BlackElo "2659"]
[TimeControl "180+1"]
[EndTime "14:08:06 PDT"]
[Termination "Alexander_Donchenko won on time"]

1. Nf3 {[%clk 0:03:00.9]} 1... Nf6 {[%clk 0:02:59.6]} 2. c4 {[%clk 0:03:01.1]}
2... g6 {[%clk 0:02:59.6]} 3. Nc3 {[%clk 0:03:01.1]} 3... Bg7 {[%clk 0:02:59.8]}
4. e4 {[%clk 0:03:01.1]} 4... e5 {[%clk 0:03:00.1]} 5. Be2 {[%clk 0:02:59.5]}
5... O-O {[%clk 0:02:57.5]} 6. O-O {[%clk 0:02:59.4]} 6... Re8 {[%clk
0:02:51.4]} 7. b4 {[%clk 0:02:52.4]} 7... c6 {[%clk 0:02:41.1]} 8. Bb2 {[%clk
0:02:47.7]} 8... d5 {[%clk 0:02:35.3]} 9. exd5 {[%clk 0:02:39.8]} 9... cxd5
{[%clk 0:02:36.2]} 10. d4 {[%clk 0:02:40.3]} 10... exd4 {[%clk 0:02:16.5]} 11.
Nxd4 {[%clk 0:02:40.4]} 11... Nc6 {[%clk 0:02:07.8]} 12. Nxc6 {[%clk 0:02:28.1]}
12... bxc6 {[%clk 0:02:08.7]} 13. Bf3 {[%clk 0:02:21.2]} 13... Ne4 {[%clk
0:01:45.7]} 14. Na4 {[%clk 0:02:06.7]} 14... Bxb2 {[%clk 0:01:36.8]} 15. Nxb2
{[%clk 0:02:07.6]} 15... Qf6 {[%clk 0:01:18.5]} 16. Na4 {[%clk 0:02:07.1]} 16...
Ba6 {[%clk 0:01:11.3]} 17. Bxe4 {[%clk 0:02:03.4]} 17... Rxe4 {[%clk 0:00:52.7]}
18. Nc5 {[%clk 0:01:57.5]} 18... Rd4 {[%clk 0:00:50.1]} 19. Qa4 {[%clk
0:01:29.3]} 19... Bxc4 {[%clk 0:00:48.6]} 20. Rfd1 {[%clk 0:01:24.6]} 20... Re8
{[%clk 0:00:43.7]} 21. Qxa7 {[%clk 0:00:40.5]} 21... Re2 {[%clk 0:00:21.1]} 22.
Qb8+ {[%clk 0:00:37]} 22... Kg7 {[%clk 0:00:19.3]} 23. Qg3 {[%clk 0:00:36.1]}
23... Rdd2 {[%clk 0:00:13.9]} 24. Nd7 {[%clk 0:00:29.7]} 24... Qxf2+ {[%clk
0:00:06.9]} 25. Qxf2 {[%clk 0:00:29.8]} 25... Rxf2 {[%clk 0:00:07.8]} 26. Rxd2
{[%clk 0:00:29.6]} 26... Rxd2 {[%clk 0:00:08.7]} 27. a4 {[%clk 0:00:28.8]} 27...
d4 {[%clk 0:00:04.9]} 28. Nb6 {[%clk 0:00:19.9]} 28... Ba6 {[%clk 0:00:04.3]}
29. Nd7 {[%clk 0:00:10.1]} 29... d3 {[%clk 0:00:04.2]} 30. Nc5 {[%clk
0:00:10.6]} 30... Bc4 {[%clk 0:00:04.5]} 31. a5 {[%clk 0:00:08.3]} 31... Rc2
{[%clk 0:00:04.5]} 32. Rd1 {[%clk 0:00:05.8]} 32... d2 {[%clk 0:00:02.3]} 33.
Kf2 {[%clk 0:00:06]} 33... Rb2 {[%clk 0:00:01.9]} 34. Ke3 {[%clk 0:00:04.1]}
34... Rxb4 {[%clk 0:00:02]} 35. Rxd2 {[%clk 0:00:04.2]} 35... Rb5 {[%clk
0:00:02.6]} 36. Kd4 {[%clk 0:00:04.4]} 36... Bd5 {[%clk 0:00:01.7]} 37. a6
{[%clk 0:00:04.7]} 37... Ra5 {[%clk 0:00:01.6]} 38. Rb2 {[%clk 0:00:02.7]} 38...
Kf6 {[%clk 0:00:02.2]} 39. Rb7 {[%clk 0:00:02.8]} 39... Ra1 {[%clk 0:00:01.8]}
40. a7 {[%clk 0:00:02.6]} 40... Kf5 {[%clk 0:00:01.6]} 41. Nd7 {[%clk
0:00:02.2]} 41... c5+ {[%clk 0:00:01.1]} 42. Kxd5 {[%clk 0:00:02.5]} 1-0

[Event "*** Titled Tuesday Blitz"]
[Site "Chess.com"]
[Date "2020.04.07"]
[Round "6"]
[White "benko_008"]
[Black "vaps"]
[Result "1-0"]
[WhiteElo "2370"]
[BlackElo "1974"]
[TimeControl "180+1"]
[EndTime "14:08:06 PDT"]
[Termination "benko_008 won on time"]

1. Nf3 {[%clk 0:03:00.9]} 1... c5 {[%clk 0:02:59.1]} 2. c4 {[%clk 0:03:00.1]}
2... Nc6 {[%clk 0:02:57.9]} 3. d4 {[%clk 0:02:59.1]} 3... cxd4 {[%clk
0:02:56.9]} 4. Nxd4 {[%clk 0:03:00]} 4... Nf6 {[%clk 0:02:52.6]} 5. Nc3 {[%clk
0:02:58.7]} 5... e6 {[%clk 0:02:51.9]} 6. a3 {[%clk 0:02:58.5]} 6... Be7 {[%clk
0:02:46.5]} 7. e4 {[%clk 0:02:56.8]} 7... d6 {[%clk 0:02:33.5]} 8. Be3 {[%clk
0:02:49]} 8... O-O {[%clk 0:02:32.8]} 9. Be2 {[%clk 0:02:47.6]} 9... Nxd4 {[%clk
0:02:21.4]} 10. Qxd4 {[%clk 0:02:45.2]} 10... Bd7 {[%clk 0:02:18.5]} 11. O-O
{[%clk 0:02:43.4]} 11... Bc6 {[%clk 0:02:11.9]} 12. Rfd1 {[%clk 0:02:40.7]}
12... a6 {[%clk 0:02:06.8]} 13. Rac1 {[%clk 0:02:38.8]} 13... Qa5 {[%clk
0:01:48.8]} 14. f4 {[%clk 0:02:24.1]} 14... Nd7 {[%clk 0:01:37.3]} 15. Bf3
{[%clk 0:02:16.4]} 15... e5 {[%clk 0:01:19.5]} 16. Qd2 {[%clk 0:02:12.2]} 16...
exf4 {[%clk 0:01:17]} 17. Nd5 {[%clk 0:02:06.3]} 17... Qd8 {[%clk 0:01:10.6]}
18. Nxe7+ {[%clk 0:02:04.6]} 18... Qxe7 {[%clk 0:01:11.5]} 19. Bxf4 {[%clk
0:02:04.4]} 19... Ne5 {[%clk 0:01:07.8]} 20. Qxd6 {[%clk 0:01:49.8]} 20... Nxf3+
{[%clk 0:00:58.7]} 21. gxf3 {[%clk 0:01:50.7]} 21... Qxd6 {[%clk 0:00:44.8]} 22.
Bxd6 {[%clk 0:01:37.7]} 22... Rfe8 {[%clk 0:00:35.4]} 23. Kf2 {[%clk 0:01:36.8]}
23... Re6 {[%clk 0:00:32.1]} 24. b4 {[%clk 0:01:32.9]} 24... Rd8 {[%clk
0:00:22.2]} 25. Bg3 {[%clk 0:01:19.1]} 25... Rxd1 {[%clk 0:00:17.5]} 26. Rxd1
{[%clk 0:01:20]} 26... g6 {[%clk 0:00:17.7]} 27. h4 {[%clk 0:01:14]} 27... Kg7
{[%clk 0:00:17.1]} 28. h5 {[%clk 0:01:12.5]} 28... f5 {[%clk 0:00:16.3]} 29. e5
{[%clk 0:00:55.5]} 29... g5 {[%clk 0:00:15.9]} 30. f4 {[%clk 0:00:50.8]} 30...
g4 {[%clk 0:00:15.5]} 31. Bh4 {[%clk 0:00:25.8]} 31... Kh6 {[%clk 0:00:14.6]}
32. Kg3 {[%clk 0:00:16.5]} 32... Kxh5 {[%clk 0:00:14]} 33. Rd8 {[%clk
0:00:16.2]} 33... Kg6 {[%clk 0:00:12.4]} 34. Rf8 {[%clk 0:00:14]} 34... h5
{[%clk 0:00:09.4]} 35. Bg5 {[%clk 0:00:13.2]} 35... b5 {[%clk 0:00:08.4]} 36. c5
{[%clk 0:00:10.9]} 36... Be4 {[%clk 0:00:06.7]} 37. Rh8 {[%clk 0:00:09.4]} 37...
Bf3 {[%clk 0:00:04.7]} 38. Kh4 {[%clk 0:00:07.6]} 38... Bc6 {[%clk 0:00:01.6]}
39. Rh6+ {[%clk 0:00:05.7]} 1-0

[Event "*** Titled Tuesday Blitz"]
[Site "Chess.com"]
[Date "2020.04.07"]
[Round "6"]
[White "Antipov_Mikhail_Al"]
[Black "Lagmantr"]
[Result "1-0"]
[WhiteElo "2956"]
[BlackElo "2734"]
[TimeControl "180+1"]
[EndTime "14:08:07 PDT"]
[Termination "Antipov_Mikhail_Al won by resignation"]

1. e4 {[%clk 0:03:00.9]} 1... c6 {[%clk 0:03:00.3]} 2. d4 {[%clk 0:03:00.8]}
2... d5 {[%clk 0:03:00.9]} 3. exd5 {[%clk 0:03:01.7]} 3... cxd5 {[%clk
0:03:01.8]} 4. Bd3 {[%clk 0:03:02]} 4... Nc6 {[%clk 0:03:02]} 5. c3 {[%clk
0:03:01.8]} 5... Qc7 {[%clk 0:03:02.6]} 6. Ne2 {[%clk 0:03:01.2]} 6... Bg4
{[%clk 0:03:02]} 7. O-O {[%clk 0:02:55.2]} 7... Nf6 {[%clk 0:03:00.1]} 8. Qe1
{[%clk 0:02:40.9]} 8... e6 {[%clk 0:02:58.4]} 9. Bf4 {[%clk 0:02:16.5]} 9... Bd6
{[%clk 0:02:52.7]} 10. Bxd6 {[%clk 0:02:16.6]} 10... Qxd6 {[%clk 0:02:53.6]} 11.
Ng3 {[%clk 0:02:17.2]} 11... O-O {[%clk 0:02:44]} 12. Nd2 {[%clk 0:02:09.7]}
12... Nh5 {[%clk 0:02:37.2]} 13. Qe3 {[%clk 0:01:57]} 13... Nxg3 {[%clk
0:02:21.6]} 14. hxg3 {[%clk 0:01:57.9]} 14... e5 {[%clk 0:02:17.8]} 15. dxe5
{[%clk 0:01:53.1]} 15... Nxe5 {[%clk 0:02:16]} 16. Bc2 {[%clk 0:01:52.4]} 16...
Rae8 {[%clk 0:02:08.6]} 17. Qd4 {[%clk 0:01:41.2]} 17... Qh6 {[%clk 0:01:17]}
18. Rae1 {[%clk 0:00:56.6]} 18... Bc8 {[%clk 0:01:00.8]} 19. f3 {[%clk
0:00:14.3]} 19... Nc6 {[%clk 0:00:54.6]} 20. Qf4 {[%clk 0:00:13.1]} 20... Qxf4
{[%clk 0:00:46]} 21. gxf4 {[%clk 0:00:14]} 21... d4 {[%clk 0:00:46.4]} 22. c4
{[%clk 0:00:07.8]} 22... Nb4 {[%clk 0:00:37.1]} 23. Bb1 {[%clk 0:00:05.6]} 23...
d3 {[%clk 0:00:37.3]} 24. a3 {[%clk 0:00:04.3]} 24... Nc2 {[%clk 0:00:37.4]} 25.
Rc1 {[%clk 0:00:01.8]} 25... Re2 {[%clk 0:00:29.2]} 26. Bxc2 {[%clk 0:00:01.2]}
26... Rxd2 {[%clk 0:00:27.2]} 27. Bb1 {[%clk 0:00:01.9]} 27... Rd8 {[%clk
0:00:22.3]} 28. b4 {[%clk 0:00:02.2]} 28... h6 {[%clk 0:00:22.1]} 29. Rcd1
{[%clk 0:00:02.4]} 29... Rb2 {[%clk 0:00:15.6]} 30. Rxd3 {[%clk 0:00:01.9]}
30... Rxd3 {[%clk 0:00:16]} 31. Bxd3 {[%clk 0:00:02.8]} 31... Rb3 {[%clk
0:00:16.5]} 32. Be4 {[%clk 0:00:03.4]} 32... Rxa3 {[%clk 0:00:17]} 33. Rd1
{[%clk 0:00:04]} 33... f5 {[%clk 0:00:13.3]} 34. Rd8+ {[%clk 0:00:04.4]} 34...
Kh7 {[%clk 0:00:13.8]} 35. Bd5 {[%clk 0:00:05.1]} 35... a5 {[%clk 0:00:10]} 36.
bxa5 {[%clk 0:00:04.7]} 36... Rxa5 {[%clk 0:00:07.3]} 37. Rxc8 {[%clk 0:00:05]}
37... Ra1+ {[%clk 0:00:08.2]} 38. Kh2 {[%clk 0:00:05.1]} 38... Rd1 {[%clk
0:00:09.1]} 39. Bxb7 {[%clk 0:00:04.9]} 39... Rd5 {[%clk 0:00:08.7]} 40. Bxd5
{[%clk 0:00:05.1]} 1-0